[Event "Early-Titled-Tuesday-Blitz-April-02-2024"]
[Site "Chess.com"]
[Date "2024.04.02"]
[Round "4"]
[White "Batica1984"]
[Black "Antosha_Chekhonte"]
[Result "1-0"]
[WhiteElo "2776"]
[BlackElo "2586"]
[TimeControl "180+1"]
[EndTime "8:39:42 PDT"]
[Termination "Batica1984 won by checkmate"]

1. e4 {[%clk 0:03:00.9]} 1... c6 {[%clk 0:03:00.1]} 2. d4 {[%clk 0:03:00.2]}
2... d5 {[%clk 0:03:00.7]} 3. e5 {[%clk 0:03:00.4]} 3... c5 {[%clk 0:03:01.1]}
4. Nf3 {[%clk 0:02:59.5]} 4... cxd4 {[%clk 0:03:00.8]} 5. Nxd4 {[%clk
0:02:59.5]} 5... Nc6 {[%clk 0:03:01.4]} 6. Nxc6 {[%clk 0:02:59.7]} 6... bxc6
{[%clk 0:03:01.4]} 7. Bd3 {[%clk 0:03:00.4]} 7... e6 {[%clk 0:03:01.3]} 8. O-O
{[%clk 0:03:00.5]} 8... a5 {[%clk 0:03:01.4]} 9. Nd2 {[%clk 0:02:52.7]} 9... Ne7
{[%clk 0:03:01]} 10. Nf3 {[%clk 0:02:52.2]} 10... Ba6 {[%clk 0:02:57.4]} 11.
Bxa6 {[%clk 0:02:51.6]} 11... Rxa6 {[%clk 0:02:58.3]} 12. c4 {[%clk 0:02:51.9]}
12... dxc4 {[%clk 0:02:43.3]} 13. Bd2 {[%clk 0:02:50.7]} 13... Nd5 {[%clk
0:02:11.2]} 14. Rc1 {[%clk 0:02:49.7]} 14... Be7 {[%clk 0:01:49.7]} 15. Rxc4
{[%clk 0:02:47.9]} 15... O-O {[%clk 0:01:48.7]} 16. a3 {[%clk 0:02:23.3]} 16...
Qb6 {[%clk 0:01:41.4]} 17. Qc2 {[%clk 0:02:20.9]} 17... Rb8 {[%clk 0:01:40.4]}
18. Bc1 {[%clk 0:02:13.6]} 18... Qb3 {[%clk 0:01:28.8]} 19. Rxc6 {[%clk
0:02:10.7]} 19... Rxc6 {[%clk 0:00:55.6]} 20. Qxc6 {[%clk 0:02:07.7]} 20... h6
{[%clk 0:00:56.2]} 21. h3 {[%clk 0:02:03.1]} 21... Bf8 {[%clk 0:00:47.3]} 22.
Re1 {[%clk 0:02:00.2]} 22... Rb7 {[%clk 0:00:41.8]} 23. Kh2 {[%clk 0:01:47.5]}
23... Rc7 {[%clk 0:00:41.4]} 24. Qa8 {[%clk 0:01:46.7]} 24... a4 {[%clk
0:00:28.5]} 25. Bd2 {[%clk 0:01:40.9]} 25... Rc2 {[%clk 0:00:23.6]} 26. Nd4
{[%clk 0:01:32.6]} 26... Qxb2 {[%clk 0:00:21]} 27. Nxc2 {[%clk 0:01:32.7]} 27...
Qxc2 {[%clk 0:00:21.9]} 28. Be3 {[%clk 0:00:44.4]} 28... Nxe3 {[%clk 0:00:17.5]}
29. fxe3 {[%clk 0:00:39.4]} 29... Qb2 {[%clk 0:00:17.7]} 30. Qxa4 {[%clk
0:00:35.2]} 30... Bxa3 {[%clk 0:00:17.5]} 31. Qf4 {[%clk 0:00:33.3]} 31... Qc2
{[%clk 0:00:13.9]} 32. Rf1 {[%clk 0:00:32.7]} 32... Qg6 {[%clk 0:00:14.5]} 33.
Ra1 {[%clk 0:00:30.6]} 33... Be7 {[%clk 0:00:14]} 34. Ra7 {[%clk 0:00:30.4]}
34... Bg5 {[%clk 0:00:13.5]} 35. Qf3 {[%clk 0:00:30]} 35... h5 {[%clk
0:00:11.9]} 36. Ra8+ {[%clk 0:00:29.5]} 36... Kh7 {[%clk 0:00:11.9]} 37. Rf8
{[%clk 0:00:30]} 37... f6 {[%clk 0:00:09.6]} 38. exf6 {[%clk 0:00:29.5]} 38...
Bxf6 {[%clk 0:00:09.9]} 39. g3 {[%clk 0:00:23.6]} 39... h4 {[%clk 0:00:08.9]}
40. g4 {[%clk 0:00:19]} 40... Be5+ {[%clk 0:00:09.2]} 41. Kg2 {[%clk 0:00:18.9]}
41... Qc2+ {[%clk 0:00:09]} 42. Qf2 {[%clk 0:00:19.1]} 42... Qe4+ {[%clk
0:00:09.3]} 43. Kg1 {[%clk 0:00:18.8]} 43... Bg3 {[%clk 0:00:08.4]} 44. Qe2
{[%clk 0:00:18.4]} 44... Qb1+ {[%clk 0:00:07.8]} 45. Rf1 {[%clk 0:00:18]} 45...
Qe4 {[%clk 0:00:08.5]} 46. Rd1 {[%clk 0:00:18.1]} 46... Kg8 {[%clk 0:00:08.2]}
47. Rd8+ {[%clk 0:00:17.9]} 47... Kf7 {[%clk 0:00:08.6]} 48. Rd7+ {[%clk
0:00:18.2]} 48... Ke8 {[%clk 0:00:07.5]} 49. Rd4 {[%clk 0:00:18.4]} 49... Qe5
{[%clk 0:00:07.5]} 50. Qd3 {[%clk 0:00:17.9]} 50... Kf7 {[%clk 0:00:07.4]} 51.
Rd7+ {[%clk 0:00:17.3]} 51... Kf6 {[%clk 0:00:08.1]} 52. Qf1+ {[%clk 0:00:16.7]}
52... Kg6 {[%clk 0:00:05.7]} 53. Qd3+ {[%clk 0:00:15.3]} 53... Kh6 {[%clk
0:00:05.5]} 54. Rd8 {[%clk 0:00:15.2]} 54... g6 {[%clk 0:00:03.1]} 55. Qd4
{[%clk 0:00:14.4]} 55... Qb5 {[%clk 0:00:01.4]} 56. Rh8+ {[%clk 0:00:13.2]}
56... Kg5 {[%clk 0:00:02]} 57. Qd8# {[%clk 0:00:13.1]} 1-0

[Event "Early-Titled-Tuesday-Blitz-April-02-2024"]
[Site "Chess.com"]
[Date "2024.04.02"]
[Round "4"]
[White "zano2023"]
[Black "DeArron_Fox"]
[Result "0-1"]
[WhiteElo "2224"]
[BlackElo "2502"]
[TimeControl "180+1"]
[EndTime "8:39:43 PDT"]
[Termination "DeArron_Fox won by resignation"]

1. d4 {[%clk 0:02:57.8]} 1... d5 {[%clk 0:02:59.8]} 2. Nf3 {[%clk 0:02:55.6]}
2... Nf6 {[%clk 0:03:00.3]} 3. Nbd2 {[%clk 0:02:56.2]} 3... c5 {[%clk
0:02:54.7]} 4. e3 {[%clk 0:02:56.6]} 4... Nc6 {[%clk 0:02:54.3]} 5. c3 {[%clk
0:02:55.7]} 5... Bg4 {[%clk 0:02:54.1]} 6. Qa4 {[%clk 0:02:53.1]} 6... a6 {[%clk
0:02:45.3]} 7. Ne5 {[%clk 0:02:50.5]} 7... Bd7 {[%clk 0:02:45.1]} 8. Nxd7 {[%clk
0:02:48.4]} 8... Qxd7 {[%clk 0:02:46]} 9. Nf3 {[%clk 0:02:47]} 9... e6 {[%clk
0:02:41.9]} 10. Bb5 {[%clk 0:02:25.2]} 10... Rc8 {[%clk 0:02:41.6]} 11. Bd3
{[%clk 0:02:24.8]} 11... Bd6 {[%clk 0:02:19.7]} 12. O-O {[%clk 0:02:22.4]} 12...
O-O {[%clk 0:02:10.8]} 13. Re1 {[%clk 0:02:21.3]} 13... b5 {[%clk 0:01:49.3]}
14. Qd1 {[%clk 0:02:04.4]} 14... e5 {[%clk 0:01:19.4]} 15. dxe5 {[%clk
0:02:03.3]} 15... Nxe5 {[%clk 0:01:20.3]} 16. Nxe5 {[%clk 0:02:03.2]} 16... Bxe5
{[%clk 0:01:21.2]} 17. a4 {[%clk 0:01:54.2]} 17... c4 {[%clk 0:01:01.9]} 18. Be2
{[%clk 0:01:48.6]} 18... Ne4 {[%clk 0:00:45.6]} 19. Bf3 {[%clk 0:01:45.5]} 19...
f5 {[%clk 0:00:40.5]} 20. Be2 {[%clk 0:01:30.6]} 20... Qc6 {[%clk 0:00:33.1]}
21. f3 {[%clk 0:01:27.9]} 21... Nc5 {[%clk 0:00:29.2]} 22. axb5 {[%clk
0:01:26.4]} 22... axb5 {[%clk 0:00:30.1]} 23. f4 {[%clk 0:01:14.4]} 23... Bf6
{[%clk 0:00:22.3]} 24. Bf3 {[%clk 0:01:08.7]} 24... Ne4 {[%clk 0:00:18.4]} 25.
Bd2 {[%clk 0:00:46.4]} 25... b4 {[%clk 0:00:15]} 26. Qc2 {[%clk 0:00:42.2]}
26... b3 {[%clk 0:00:05]} 27. Qc1 {[%clk 0:00:41.5]} 27... Ra8 {[%clk
0:00:04.4]} 28. Bxe4 {[%clk 0:00:39.6]} 28... dxe4 {[%clk 0:00:03.7]} 29. Rd1
{[%clk 0:00:39]} 29... Rxa1 {[%clk 0:00:03.6]} 30. Qxa1 {[%clk 0:00:38.4]} 30...
Ra8 {[%clk 0:00:04.5]} 31. Qc1 {[%clk 0:00:34.7]} 31... Rd8 {[%clk 0:00:05]} 32.
Be1 {[%clk 0:00:33.8]} 32... Rd3 {[%clk 0:00:04.9]} 33. Bf2 {[%clk 0:00:32.7]}
33... h6 {[%clk 0:00:03.6]} 34. h3 {[%clk 0:00:28.3]} 34... Be7 {[%clk
0:00:04.1]} 35. Rd2 {[%clk 0:00:27.7]} 35... Bc5 {[%clk 0:00:04.2]} 36. Re2
{[%clk 0:00:26.1]} 36... Qd6 {[%clk 0:00:03.1]} 37. Re1 {[%clk 0:00:24.5]} 37...
Rd2 {[%clk 0:00:03.1]} 38. Qa1 {[%clk 0:00:18.9]} 38... Rc2 {[%clk 0:00:03]} 39.
Rd1 {[%clk 0:00:13.7]} 39... Qc6 {[%clk 0:00:01.4]} 40. Qb1 {[%clk 0:00:12.1]}
40... Kh7 {[%clk 0:00:01.9]} 41. Qa1 {[%clk 0:00:11.6]} 41... Qb6 {[%clk
0:00:02.1]} 42. Re1 {[%clk 0:00:09]} 42... Qa7 {[%clk 0:00:02.1]} 43. Qxa7
{[%clk 0:00:08]} 43... Bxa7 {[%clk 0:00:03]} 44. Rb1 {[%clk 0:00:07.8]} 44...
Bc5 {[%clk 0:00:03]} 45. Kf1 {[%clk 0:00:08.3]} 45... g5 {[%clk 0:00:03.1]} 46.
Ke1 {[%clk 0:00:09]} 46... gxf4 {[%clk 0:00:03.1]} 47. Bh4 {[%clk 0:00:07.1]}
47... Bxe3 {[%clk 0:00:02.7]} 48. g3 {[%clk 0:00:05.8]} 48... f3 {[%clk
0:00:02.5]} 49. g4 {[%clk 0:00:05.8]} 49... f4 {[%clk 0:00:02.4]} 50. Kf1 {[%clk
0:00:05.2]} 50... Bc1 {[%clk 0:00:02.5]} 51. Be1 {[%clk 0:00:03]} 51... Bxb2
{[%clk 0:00:02.9]} 52. h4 {[%clk 0:00:01.9]} 52... e3 {[%clk 0:00:03.3]} 53. g5
{[%clk 0:00:02.4]} 53... hxg5 {[%clk 0:00:03]} 54. Kg1 {[%clk 0:00:02.6]} 54...
g4 {[%clk 0:00:03.1]} 0-1

[Event "Early-Titled-Tuesday-Blitz-April-02-2024"]
[Site "Chess.com"]
[Date "2024.04.02"]
[Round "4"]
[White "rezamahdavi2008"]
[Black "Shuvalov"]
[Result "1-0"]
[WhiteElo "2896"]
[BlackElo "2608"]
[TimeControl "180+1"]
[EndTime "8:39:48 PDT"]
[Termination "rezamahdavi2008 won by resignation"]

1. e4 {[%clk 0:03:00.9]} 1... e6 {[%clk 0:02:58.7]} 2. d4 {[%clk 0:03:00.6]}
2... d5 {[%clk 0:02:58.4]} 3. Nc3 {[%clk 0:03:01.2]} 3... Bb4 {[%clk 0:02:57.8]}
4. e5 {[%clk 0:03:00.5]} 4... c5 {[%clk 0:02:57.6]} 5. a3 {[%clk 0:02:59.4]}
5... Bxc3+ {[%clk 0:02:57.5]} 6. bxc3 {[%clk 0:03:00.3]} 6... Ne7 {[%clk
0:02:57.9]} 7. Qg4 {[%clk 0:02:57.5]} 7... Qc7 {[%clk 0:02:57.4]} 8. Bd3 {[%clk
0:02:56.1]} 8... c4 {[%clk 0:02:56.2]} 9. Be2 {[%clk 0:02:54.4]} 9... Qa5 {[%clk
0:02:55.6]} 10. Bd2 {[%clk 0:02:50.8]} 10... Nf5 {[%clk 0:02:55.3]} 11. h4
{[%clk 0:02:49]} 11... Nc6 {[%clk 0:02:54.2]} 12. h5 {[%clk 0:02:47.3]} 12... h6
{[%clk 0:02:52.3]} 13. Nf3 {[%clk 0:02:42.4]} 13... Qa4 {[%clk 0:02:51.4]} 14.
Bd1 {[%clk 0:02:41.5]} 14... Bd7 {[%clk 0:02:50.9]} 15. Nh4 {[%clk 0:02:37.9]}
15... Rg8 {[%clk 0:02:47.5]} 16. Qf3 {[%clk 0:02:33.6]} 16... O-O-O {[%clk
0:02:37.2]} 17. Nxf5 {[%clk 0:02:26.9]} 17... exf5 {[%clk 0:02:37]} 18. Qxd5
{[%clk 0:02:27.5]} 18... Be6 {[%clk 0:02:21.9]} 19. Qf3 {[%clk 0:02:26.1]} 19...
Ne7 {[%clk 0:02:17.5]} 20. Qg3 {[%clk 0:02:20.4]} 20... g6 {[%clk 0:02:08.8]}
21. hxg6 {[%clk 0:02:17.7]} 21... Rxg6 {[%clk 0:02:07.9]} 22. Qh4 {[%clk
0:02:18.4]} 22... Nd5 {[%clk 0:02:00.3]} 23. g3 {[%clk 0:02:17.7]} 23... Rdg8
{[%clk 0:01:56.1]} 24. Ra2 {[%clk 0:02:07.8]} 24... Qb5 {[%clk 0:01:53.7]} 25.
Ra1 {[%clk 0:01:45.6]} 25... Qb2 {[%clk 0:01:53.4]} 26. Rc1 {[%clk 0:01:46.2]}
26... Nxc3 {[%clk 0:01:49.6]} 27. Bf3 {[%clk 0:01:39.8]} 27... Nd5 {[%clk
0:01:40.7]} 28. c3 {[%clk 0:01:26.6]} 28... Rg4 {[%clk 0:01:21.2]} 29. Qxh6
{[%clk 0:01:20.7]} 29... Re4+ {[%clk 0:01:12.6]} 30. Bxe4 {[%clk 0:01:18.3]}
30... fxe4 {[%clk 0:01:13.5]} 31. Rh4 {[%clk 0:01:16.6]} 31... e3 {[%clk
0:01:05.6]} 32. fxe3 {[%clk 0:01:09.6]} 32... Kd7 {[%clk 0:00:45.7]} 33. Qh7
{[%clk 0:00:46.1]} 33... Rxg3 {[%clk 0:00:40.2]} 34. Qc2 {[%clk 0:00:45.7]}
34... Qxa3 {[%clk 0:00:30.6]} 35. Kf2 {[%clk 0:00:43.7]} 35... Rg8 {[%clk
0:00:27.8]} 36. Rb1 {[%clk 0:00:42.9]} 36... b6 {[%clk 0:00:27.5]} 37. e4 {[%clk
0:00:34.7]} 37... Ne7 {[%clk 0:00:22.9]} 38. Qb2 {[%clk 0:00:32.6]} 38... Qa4
{[%clk 0:00:18.9]} 39. Qb5+ {[%clk 0:00:32.4]} 39... Qxb5 {[%clk 0:00:18.9]} 40.
Rxb5 {[%clk 0:00:33.3]} 40... Ng6 {[%clk 0:00:18.3]} 41. Rh6 {[%clk 0:00:30.5]}
41... Kc7 {[%clk 0:00:18.1]} 42. Rh7 {[%clk 0:00:30.2]} 42... Rf8 {[%clk
0:00:17.6]} 43. d5 {[%clk 0:00:30.4]} 43... Bd7 {[%clk 0:00:17.8]} 44. Rb4
{[%clk 0:00:25.8]} 44... Nxe5 {[%clk 0:00:18.1]} 45. Bf4 {[%clk 0:00:26.4]}
45... Kd6 {[%clk 0:00:18]} 46. Ke3 {[%clk 0:00:22.7]} 46... f6 {[%clk
0:00:17.6]} 47. Rh6 {[%clk 0:00:21.3]} 47... b5 {[%clk 0:00:17.5]} 48. Kd4
{[%clk 0:00:20.6]} 48... Ke7 {[%clk 0:00:14.8]} 49. Bxe5 {[%clk 0:00:20.5]}
49... fxe5+ {[%clk 0:00:15.7]} 50. Kxe5 {[%clk 0:00:21.4]} 50... a5 {[%clk
0:00:15.4]} 51. Rb1 {[%clk 0:00:20.8]} 51... Rf3 {[%clk 0:00:14.4]} 52. Rg1
{[%clk 0:00:20.5]} 52... Kd8 {[%clk 0:00:13.9]} 53. Rg7 {[%clk 0:00:20.2]} 53...
b4 {[%clk 0:00:11.9]} 54. Rh8+ {[%clk 0:00:18.9]} 54... Kc7 {[%clk 0:00:10.8]}
55. Rhh7 {[%clk 0:00:19.5]} 55... bxc3 {[%clk 0:00:11.1]} 56. Rxd7+ {[%clk
0:00:20.3]} 56... Kb6 {[%clk 0:00:12]} 57. Rd6+ {[%clk 0:00:20.2]} 57... Kb5
{[%clk 0:00:11.5]} 58. Rb7+ {[%clk 0:00:21]} 58... Ka4 {[%clk 0:00:11.8]} 59.
Rc6 {[%clk 0:00:21.8]} 59... c2 {[%clk 0:00:09.3]} 60. Rxc4+ {[%clk 0:00:22.1]}
60... Ka3 {[%clk 0:00:08.6]} 61. Rxc2 {[%clk 0:00:22.9]} 61... Rb3 {[%clk
0:00:07]} 62. Rxb3+ {[%clk 0:00:22.9]} 62... Kxb3 {[%clk 0:00:07.9]} 63. Rc8
{[%clk 0:00:23.7]} 63... a4 {[%clk 0:00:08.4]} 64. Ra8 {[%clk 0:00:24.5]} 1-0

[Event "Early-Titled-Tuesday-Blitz-April-02-2024"]
[Site "Chess.com"]
[Date "2024.04.02"]
[Round "4"]
[White "Zq1"]
[Black "temus_galaktionov"]
[Result "1/2-1/2"]
[WhiteElo "2612"]
[BlackElo "2844"]
[TimeControl "180+1"]
[EndTime "8:39:48 PDT"]
[Termination "Game drawn by repetition"]

1. d4 {[%clk 0:03:00.9]} 1... c6 {[%clk 0:03:00.9]} 2. Bf4 {[%clk 0:02:59.2]}
2... g6 {[%clk 0:03:01.8]} 3. e3 {[%clk 0:02:58.7]} 3... d6 {[%clk 0:03:02]} 4.
c4 {[%clk 0:02:57.9]} 4... Bg7 {[%clk 0:02:59.4]} 5. Nc3 {[%clk 0:02:57.5]} 5...
Nd7 {[%clk 0:02:58.4]} 6. h3 {[%clk 0:02:55.5]} 6... e5 {[%clk 0:02:53.8]} 7.
dxe5 {[%clk 0:02:54.2]} 7... dxe5 {[%clk 0:02:54.7]} 8. Bg3 {[%clk 0:02:52.4]}
8... Ngf6 {[%clk 0:02:55.3]} 9. Nf3 {[%clk 0:02:50.9]} 9... Qe7 {[%clk 0:02:55]}
10. Be2 {[%clk 0:02:47.2]} 10... O-O {[%clk 0:02:53.4]} 11. O-O {[%clk
0:02:46.2]} 11... Re8 {[%clk 0:02:51.5]} 12. a3 {[%clk 0:02:42]} 12... a5 {[%clk
0:02:50.1]} 13. Rb1 {[%clk 0:02:39.2]} 13... Nh5 {[%clk 0:02:37.7]} 14. Bh2
{[%clk 0:02:37.9]} 14... f5 {[%clk 0:02:37.7]} 15. b4 {[%clk 0:02:33.3]} 15...
axb4 {[%clk 0:02:36.3]} 16. axb4 {[%clk 0:02:32.5]} 16... Nhf6 {[%clk
0:02:29.1]} 17. c5 {[%clk 0:02:28.3]} 17... h6 {[%clk 0:02:28.2]} 18. Nd2 {[%clk
0:02:24.3]} 18... b6 {[%clk 0:02:19.5]} 19. cxb6 {[%clk 0:02:09.1]} 19... Nxb6
{[%clk 0:02:20.4]} 20. Nc4 {[%clk 0:02:06.9]} 20... Nxc4 {[%clk 0:02:19.5]} 21.
Bxc4+ {[%clk 0:02:06.9]} 21... Kh7 {[%clk 0:02:13.2]} 22. Qb3 {[%clk 0:02:03.6]}
22... Rb8 {[%clk 0:02:11.1]} 23. Rfc1 {[%clk 0:02:00.1]} 23... Bd7 {[%clk
0:02:07.2]} 24. Na4 {[%clk 0:01:57.6]} 24... Ne4 {[%clk 0:02:05.1]} 25. Rb2
{[%clk 0:01:46.2]} 25... Red8 {[%clk 0:01:53]} 26. Bd3 {[%clk 0:01:41.3]} 26...
Be6 {[%clk 0:01:47.3]} 27. Qa3 {[%clk 0:01:32.5]} 27... Bd5 {[%clk 0:01:38.7]}
28. Bxe4 {[%clk 0:01:15.9]} 28... Bxe4 {[%clk 0:01:39.6]} 29. Nc5 {[%clk
0:01:12.9]} 29... Bd5 {[%clk 0:01:36.5]} 30. Rbc2 {[%clk 0:01:09.2]} 30... Ra8
{[%clk 0:01:34.4]} 31. Qc3 {[%clk 0:01:05.3]} 31... e4 {[%clk 0:01:30.3]} 32.
Qe1 {[%clk 0:01:04.6]} 32... Ra3 {[%clk 0:01:26.8]} 33. Bg3 {[%clk 0:01:03.8]}
33... Rda8 {[%clk 0:01:25.8]} 34. h4 {[%clk 0:00:51.2]} 34... Ra1 {[%clk
0:01:24.2]} 35. Rxa1 {[%clk 0:00:49.2]} 35... Rxa1 {[%clk 0:01:25.1]} 36. Rc1
{[%clk 0:00:49]} 36... Ra2 {[%clk 0:01:19.4]} 37. Qd1 {[%clk 0:00:41]} 37... Rb2
{[%clk 0:01:14.1]} 38. Rb1 {[%clk 0:00:38.3]} 38... Rxb1 {[%clk 0:01:10.7]} 39.
Qxb1 {[%clk 0:00:37.1]} 39... Qa7 {[%clk 0:01:09.5]} 40. Nb3 {[%clk 0:00:31.4]}
40... Bc3 {[%clk 0:00:56.5]} 41. Bd6 {[%clk 0:00:28.6]} 41... Qa4 {[%clk
0:00:49.6]} 42. Nd4 {[%clk 0:00:23.8]} 42... Kg7 {[%clk 0:00:40.7]} 43. b5
{[%clk 0:00:22.2]} 43... cxb5 {[%clk 0:00:38.2]} 44. Qxb5 {[%clk 0:00:22]} 44...
Qxb5 {[%clk 0:00:36.6]} 45. Nxb5 {[%clk 0:00:20.7]} 45... Bf6 {[%clk 0:00:36.3]}
46. g3 {[%clk 0:00:19.4]} 46... Bc4 {[%clk 0:00:31.5]} 47. Nd4 {[%clk
0:00:18.2]} 47... Kf7 {[%clk 0:00:28]} 48. Bb4 {[%clk 0:00:17.9]} 48... Bd8
{[%clk 0:00:20.5]} 49. Kg2 {[%clk 0:00:17.6]} 49... Bd3 {[%clk 0:00:19.6]} 50.
Bc3 {[%clk 0:00:17.3]} 50... Bc7 {[%clk 0:00:19.5]} 51. Nc6 {[%clk 0:00:16.1]}
51... Ke6 {[%clk 0:00:18.4]} 52. Nb4 {[%clk 0:00:14]} 52... Bb5 {[%clk 0:00:18]}
53. Nc2 {[%clk 0:00:13.3]} 53... Bd7 {[%clk 0:00:17.8]} 54. Bg7 {[%clk
0:00:11.6]} 54... h5 {[%clk 0:00:17]} 55. Bc3 {[%clk 0:00:09.8]} 55... Kd5
{[%clk 0:00:17.4]} 56. Bf6 {[%clk 0:00:09.4]} 56... Kc4 {[%clk 0:00:17.5]} 57.
Nd4 {[%clk 0:00:09.4]} 57... Kd3 {[%clk 0:00:17.4]} 58. Bg5 {[%clk 0:00:09.1]}
58... Be5 {[%clk 0:00:17]} 59. Bf4 {[%clk 0:00:08.5]} 59... Bf6 {[%clk
0:00:16.9]} 60. Bg5 {[%clk 0:00:08.3]} 60... Bg7 {[%clk 0:00:17.2]} 61. Bf4
{[%clk 0:00:08.4]} 61... Kd2 {[%clk 0:00:17.4]} 62. Bg5 {[%clk 0:00:08.4]} 62...
Ke1 {[%clk 0:00:17.2]} 63. Bf4 {[%clk 0:00:08.4]} 63... Kd2 {[%clk 0:00:16.2]}
64. Bg5 {[%clk 0:00:08.4]} 64... Kd3 {[%clk 0:00:16.6]} 65. Bf4 {[%clk
0:00:08.5]} 65... Bc8 {[%clk 0:00:15.8]} 66. Bg5 {[%clk 0:00:08.5]} 66... Bd7
{[%clk 0:00:16]} 1/2-1/2

[Event "Early-Titled-Tuesday-Blitz-April-02-2024"]
[Site "Chess.com"]
[Date "2024.04.02"]
[Round "4"]
[White "sathvikadiga"]
[Black "Rutricks"]
[Result "0-1"]
[WhiteElo "2553"]
[BlackElo "2709"]
[TimeControl "180+1"]
[EndTime "8:39:49 PDT"]
[Termination "Rutricks won by checkmate"]

1. e4 {[%clk 0:03:00.9]} 1... g6 {[%clk 0:02:59.3]} 2. d4 {[%clk 0:03:00.4]}
2... Nf6 {[%clk 0:03:00]} 3. Nc3 {[%clk 0:02:59.8]} 3... d6 {[%clk 0:02:58.1]}
4. Nf3 {[%clk 0:03:00.2]} 4... Bg7 {[%clk 0:02:58.7]} 5. h3 {[%clk 0:03:00.7]}
5... a6 {[%clk 0:02:59]} 6. a4 {[%clk 0:02:59.8]} 6... Nc6 {[%clk 0:02:57.8]} 7.
Be3 {[%clk 0:02:58.8]} 7... O-O {[%clk 0:02:56]} 8. Be2 {[%clk 0:02:58.1]} 8...
e5 {[%clk 0:02:49.6]} 9. O-O {[%clk 0:02:58.3]} 9... exd4 {[%clk 0:02:45.7]} 10.
Nxd4 {[%clk 0:02:59.2]} 10... Re8 {[%clk 0:02:46.3]} 11. Bd3 {[%clk 0:02:49.6]}
11... Ne5 {[%clk 0:01:55.3]} 12. f4 {[%clk 0:02:47.4]} 12... Nxd3 {[%clk
0:01:55.6]} 13. cxd3 {[%clk 0:02:46.8]} 13... c5 {[%clk 0:01:46.5]} 14. Nf3
{[%clk 0:02:44.9]} 14... Bd7 {[%clk 0:01:43.6]} 15. Qc2 {[%clk 0:02:34.6]} 15...
Bc6 {[%clk 0:01:41.7]} 16. Rad1 {[%clk 0:02:23.6]} 16... b5 {[%clk 0:01:40.7]}
17. Bc1 {[%clk 0:01:41.3]} 17... Qd7 {[%clk 0:01:31.5]} 18. Ne2 {[%clk
0:01:36.7]} 18... bxa4 {[%clk 0:01:25.9]} 19. Nc3 {[%clk 0:01:30]} 19... Rab8
{[%clk 0:01:22.2]} 20. Rfe1 {[%clk 0:01:29.3]} 20... h6 {[%clk 0:00:46.1]} 21.
d4 {[%clk 0:01:26.9]} 21... cxd4 {[%clk 0:00:34.3]} 22. Nxd4 {[%clk 0:01:27.8]}
22... Rec8 {[%clk 0:00:33.4]} 23. Qf2 {[%clk 0:00:53.8]} 23... Qb7 {[%clk
0:00:26.3]} 24. e5 {[%clk 0:00:38.9]} 24... dxe5 {[%clk 0:00:26.6]} 25. fxe5
{[%clk 0:00:39.8]} 25... Nd5 {[%clk 0:00:27.2]} 26. Nxc6 {[%clk 0:00:37.6]}
26... Nxc3 {[%clk 0:00:27.7]} 27. bxc3 {[%clk 0:00:19.4]} 27... Qxc6 {[%clk
0:00:28.2]} 28. Rf1 {[%clk 0:00:18.8]} 28... Rb7 {[%clk 0:00:23.6]} 29. Qf3
{[%clk 0:00:15.5]} 29... Qxf3 {[%clk 0:00:22.7]} 30. Rxf3 {[%clk 0:00:16.4]}
30... Rb1 {[%clk 0:00:21.2]} 31. Rdf1 {[%clk 0:00:15]} 31... Bxe5 {[%clk
0:00:19.9]} 32. Bxh6 {[%clk 0:00:13.4]} 32... Rxf1+ {[%clk 0:00:19.5]} 33. Kxf1
{[%clk 0:00:14]} 33... Rxc3 {[%clk 0:00:16.6]} 34. Rf2 {[%clk 0:00:13.7]} 34...
a3 {[%clk 0:00:14.1]} 35. Ra2 {[%clk 0:00:13.3]} 35... Rb3 {[%clk 0:00:14.5]}
36. Bd2 {[%clk 0:00:07.4]} 36... Rb2 {[%clk 0:00:12.3]} 37. Rxa3 {[%clk
0:00:07.8]} 37... Rxd2 {[%clk 0:00:12.7]} 38. Rxa6 {[%clk 0:00:08.6]} 38... Bd4
{[%clk 0:00:12.5]} 39. g4 {[%clk 0:00:09]} 39... Rf2+ {[%clk 0:00:12.3]} 40. Ke1
{[%clk 0:00:09.7]} 40... Rh2 {[%clk 0:00:12.9]} 41. Ra3 {[%clk 0:00:09]} 41...
Bc5 {[%clk 0:00:12.7]} 42. Rf3 {[%clk 0:00:09.2]} 42... Kg7 {[%clk 0:00:12.7]}
43. Kf1 {[%clk 0:00:09.7]} 43... f6 {[%clk 0:00:12.4]} 44. Rc3 {[%clk
0:00:09.7]} 44... Bd4 {[%clk 0:00:12.7]} 45. Rf3 {[%clk 0:00:09.2]} 45... Kh6
{[%clk 0:00:12.3]} 46. Rd3 {[%clk 0:00:08.9]} 46... Be5 {[%clk 0:00:12.3]} 47.
Kg1 {[%clk 0:00:07.6]} 47... Rb2 {[%clk 0:00:12.9]} 48. Rf3 {[%clk 0:00:07]}
48... Kg5 {[%clk 0:00:12.9]} 49. Rd3 {[%clk 0:00:06.7]} 49... Kh4 {[%clk
0:00:13.1]} 50. Rf3 {[%clk 0:00:06.7]} 50... Rc2 {[%clk 0:00:12.8]} 51. Kh1
{[%clk 0:00:05.7]} 51... Rc3 {[%clk 0:00:13]} 52. Kg2 {[%clk 0:00:02.9]} 52...
Rxf3 {[%clk 0:00:13.1]} 53. Kxf3 {[%clk 0:00:03.8]} 53... Kxh3 {[%clk 0:00:14]}
54. Ke4 {[%clk 0:00:04.2]} 54... Kxg4 {[%clk 0:00:14]} 55. Kd5 {[%clk
0:00:05.1]} 55... Kf3 {[%clk 0:00:14]} 56. Ke6 {[%clk 0:00:06]} 56... g5 {[%clk
0:00:14.6]} 57. Kf7 {[%clk 0:00:06.9]} 57... g4 {[%clk 0:00:15.5]} 58. Ke6
{[%clk 0:00:07.6]} 58... g3 {[%clk 0:00:16.4]} 59. Kf5 {[%clk 0:00:08.5]} 59...
g2 {[%clk 0:00:17.3]} 60. Ke6 {[%clk 0:00:09.2]} 60... g1=Q {[%clk 0:00:17.8]}
61. Kf5 {[%clk 0:00:10.1]} 61... Qg4# {[%clk 0:00:18.4]} 0-1